[Event "FIDE Women World Blitz 2021"]
[Site "Warsaw"]
[Date "2021.12.30"]
[Round "10.12"]
[White "Majdan, Joanna"]
[Black "Babiy, Olga"]
[Result "1/2-1/2"]
[ECO "B15"]
[WhiteElo "2325"]
[BlackElo "2179"]
[Annotator "ChessBase"]
[PlyCount "206"]
[EventDate "2021.12.29"]
[EventType "swiss"]
[EventCountry "POL"]
[Tiebreak "Cut1 Buchholz"]
[SourceTitle "playchess.com"]
[Source "ChessBase"]
[SourceQuality "1"]
[TimeControl "180+2"]

1. e4 {[%emt 0:00:01]} c6 {[%emt 0:00:01]} 2. d4 {[%emt 0:00:01]} d5 3. Nc3 {
[%emt 0:00:01]} dxe4 {[%emt 0:00:01]} 4. Nxe4 {[%emt 0:00:01]} Nf6 {[%emt 0:00:
01]} 5. Nxf6+ exf6 {[%emt 0:00:00]} 6. Nf3 {[%emt 0:00:04]} Bd6 {[%emt 0:00:01]
} 7. c3 {[%emt 0:00:07]} O-O {[%emt 0:00:02]} 8. Be3 {[%emt 0:00:05]} Bg4 {
[%emt 0:00:04]} 9. Bd3 {[%emt 0:00:03]} Re8 {[%emt 0:00:07]} 10. Qc2 {[%emt 0:
00:06]} h5 {[%emt 0:00:22]} 11. h3 {[%emt 0:00:06]} Bxf3 {[%emt 0:00:08]} 12.
gxf3 {[%emt 0:00:01]} Bf4 {[%emt 0:00:00]} 13. Kd2 {[%emt 0:00:12]} Qd6 {
[%emt 0:00:16]} 14. Rae1 {[%emt 0:00:09]} Nd7 {[%emt 0:00:01]} 15. Kc1 {
[%emt 0:00:14]} c5 {[%emt 0:00:08]} 16. Kb1 {[%emt 0:00:08]} cxd4 {[%emt 0:00:
07]} 17. Bxd4 {[%emt 0:00:01]} Ne5 {[%emt 0:00:10]} 18. Be4 {[%emt 0:00:01]}
Qc7 {[%emt 0:00:11]} 19. Rhg1 {[%emt 0:00:11]} Rac8 {[%emt 0:00:02]} 20. Bh7+ {
[%emt 0:00:06]} Kh8 {[%emt 0:00:07]} 21. Qf5 {[%emt 0:00:13]} Bh6 {[%emt 0:00:
07]} 22. Bxe5 {[%emt 0:00:33]} Rxe5 {[%emt 0:00:14]} 23. Rxe5 fxe5 {[%emt 0:00:
00]} 24. Qe4 {[%emt 0:00:25]} g6 {[%emt 0:00:10]} 25. Bxg6 {[%emt 0:00:01]}
fxg6 {[%emt 0:00:01]} 26. Rxg6 {[%emt 0:00:08]} Bg7 {[%emt 0:00:13]} 27. Qf5 {
[%emt 0:00:14]} Rf8 {[%emt 0:00:06]} 28. Qxh5+ {[%emt 0:00:02]} Kg8 {[%emt 0:
00:01]} 29. Qg4 {[%emt 0:00:08]} Qf7 {[%emt 0:00:04]} 30. Rg5 {[%emt 0:00:06]}
Qf6 {[%emt 0:00:23]} 31. h4 {[%emt 0:00:04]} Rf7 {[%emt 0:00:01]} 32. h5 {
[%emt 0:00:06]} Kh8 {[%emt 0:00:06]} 33. Qc8+ {[%emt 0:00:05]} Kh7 {[%emt 0:00:
10]} 34. Qg4 {[%emt 0:00:01]} Qf4 {[%emt 0:00:03]} 35. Qg2 {[%emt 0:00:06]} Qd2
{[%emt 0:00:09]} 36. a3 {[%emt 0:00:02]} Qd1+ {[%emt 0:00:10]} 37. Ka2 {
[%emt 0:00:00]} Qd5+ {[%emt 0:00:01]} 38. Kb1 {[%emt 0:00:03]} Qd1+ {[%emt 0:
00:01]} 39. Ka2 {[%emt 0:00:01]} Qd5+ {[%emt 0:00:05]} 40. Kb1 {[%emt 0:00:02]}
Rd7 {[%emt 0:00:03]} 41. Qg4 {[%emt 0:00:11]} Qd3+ {[%emt 0:00:11]} 42. Ka1 {
[%emt 0:00:05]} Rf7 {[%emt 0:00:02]} 43. h6 {[%emt 0:00:04]} Bxh6 {[%emt 0:00:
02]} 44. Rxe5 {[%emt 0:00:01]} Qg6 {[%emt 0:00:05]} 45. Qc4 {[%emt 0:00:04]}
Rxf3 {[%emt 0:00:04]} 46. Re6 {[%emt 0:00:01]} Qg1+ {[%emt 0:00:03]} 47. Ka2 {
[%emt 0:00:01]} Rf7 {[%emt 0:00:08]} 48. Rxh6+ Kxh6 {[%emt 0:00:01]} 49. Qxf7 {
[%emt 0:00:03]} Qf1 {[%emt 0:00:01]} 50. Qf6+ {[%emt 0:00:00]} Kh7 {[%emt 0:00:
01]} 51. Qf7+ {[%emt 0:00:01]} Kh6 {[%emt 0:00:00]} 52. f4 {[%emt 0:00:02]} a5
{[%emt 0:00:02]} 53. f5 {[%emt 0:00:01]} Kg5 {[%emt 0:00:02]} 54. Qg6+ {
[%emt 0:00:03]} Kf4 {[%emt 0:00:01]} 55. Qd6+ {[%emt 0:00:02]} Kg5 {[%emt 0:00:
02]} 56. Qe7+ {[%emt 0:00:02]} Kf4 {[%emt 0:00:03]} 57. Qc7+ {[%emt 0:00:05]}
Kg5 {[%emt 0:00:02]} 58. Qxa5 {[%emt 0:00:05]} Qc4+ {[%emt 0:00:02]} 59. Kb1 {
[%emt 0:00:00]} Qd3+ {[%emt 0:00:06]} 60. Ka1 {[%emt 0:00:02]} Qf1+ {[%emt 0:
00:02]} 61. Ka2 {[%emt 0:00:00]} Qc4+ {[%emt 0:00:00]} 62. Kb1 {[%emt 0:00:01]}
Qd3+ {[%emt 0:00:02]} 63. Kc1 {[%emt 0:00:01]} Qf1+ {[%emt 0:00:04]} 64. Kc2 {
[%emt 0:00:00]} Qe2+ {[%emt 0:00:01]} 65. Kb3 {[%emt 0:00:01]} Qd1+ {[%emt 0:
00:02]} 66. Kb4 {[%emt 0:00:02]} Qd2 {[%emt 0:00:03]} 67. b3 {[%emt 0:00:02]}
Qd6+ {[%emt 0:00:02]} 68. Qc5 {[%emt 0:00:02]} Qd3 {[%emt 0:00:04]} 69. f6+ {
[%emt 0:00:03]} Kg6 {[%emt 0:00:01]} 70. Qd4 {[%emt 0:00:03]} Qf1 {[%emt 0:00:
01]} 71. a4 {[%emt 0:00:03]} Qf5 {[%emt 0:00:03]} 72. a5 {[%emt 0:00:02]} Qc8 {
[%emt 0:00:01]} 73. Qd6 {[%emt 0:00:03]} Qe8 {[%emt 0:00:03]} 74. c4 {[%emt 0:
00:02]} Qe1+ {[%emt 0:00:02]} 75. Kb5 {[%emt 0:00:02]} Qb1 {[%emt 0:00:01]} 76.
b4 {[%emt 0:00:01]} Qf5+ {[%emt 0:00:02]} 77. c5 {[%emt 0:00:02]} Qf1+ {
[%emt 0:00:01]} 78. Kb6 {[%emt 0:00:01]} Qc4 {[%emt 0:00:01]} 79. b5 {[%emt 0:
00:03]} Qe4 {[%emt 0:00:02]} 80. c6 {[%emt 0:00:04]} bxc6 {[%emt 0:00:00]} 81.
Qxc6 {[%emt 0:00:01]} Qd4+ {[%emt 0:00:02]} 82. Kb7 {[%emt 0:00:01]} Qd8 {
[%emt 0:00:04]} 83. f7+ {[%emt 0:00:02]} Kg7 {[%emt 0:00:01]} 84. f8=R {
[%emt 0:00:03]} Qxf8 {[%emt 0:00:03]} 85. Qc7+ {[%emt 0:00:03]} Kg6 {[%emt 0:
00:01]} 86. a6 {[%emt 0:00:01]} Qb4 {[%emt 0:00:05]} 87. b6 {[%emt 0:00:02]}
Kh5 {[%emt 0:00:02]} 88. a7 {[%emt 0:00:02]} Qe4+ {[%emt 0:00:01]} 89. Qc6 {
[%emt 0:00:01]} Qe7+ {[%emt 0:00:01]} 90. Kb8 {[%emt 0:00:03]} Qd8+ {[%emt 0:
00:03]} 91. Qc8 {[%emt 0:00:01]} Qxb6+ {[%emt 0:00:01]} 92. Qb7 {[%emt 0:00:01]
} Qd8+ {[%emt 0:00:02]} 93. Qc8 {[%emt 0:00:01]} Qb6+ {[%emt 0:00:00]} 94. Ka8
{[%emt 0:00:01]} Qb5 {[%emt 0:00:06]} 95. Qh8+ {[%emt 0:00:02]} Kg6 {[%emt 0:
00:01]} 96. Qg8+ {[%emt 0:00:02]} Kh6 {[%emt 0:00:01]} 97. Qe6+ {[%emt 0:00:02]
} Kh5 {[%emt 0:00:02]} 98. Qf7+ {[%emt 0:00:01]} Kh6 {[%emt 0:00:01]} 99. Qb7 {
[%emt 0:00:02]} Qe8+ {[%emt 0:00:01]} 100. Qb8 {[%emt 0:00:02]} Qc6+ {[%emt 0:
00:01]} 101. Qb7 {[%emt 0:00:01]} Qe8+ {[%emt 0:00:00]} 102. Qb8 {[%emt 0:00:
01]} Qc6+ {[%emt 0:00:01]} 103. Qb7 {[%emt 0:00:01]} Qe8+ {[%emt 0:00:01]}
1/2-1/2

[Event "FIDE Women World Blitz 2021"]
[Site "Warsaw"]
[Date "2021.12.30"]
[Round "10.12"]
[White "Brambilla, Renee Blandy T."]
[Black "Zairbek kyzy, Begimai"]
[Result "1/2-1/2"]
[ECO "D36"]
[WhiteElo "1651"]
[BlackElo "1701"]
[Annotator "NA"]
[PlyCount "87"]
[EventDate "2021.12.29"]
[EventType "swiss"]
[EventCountry "POL"]
[Tiebreak "Cut1 Buchholz"]
[SourceTitle "playchess.com"]
[Source "ChessBase"]
[SourceQuality "1"]
[TimeControl "180+2"]

1. d4 {[%emt 0:00:01]} d5 {[%emt 0:00:02]} 2. c4 {[%emt 0:00:01]} e6 {[%emt 0:
00:00]} 3. Nc3 {[%emt 0:00:01]} Nf6 {[%emt 0:00:01]} 4. cxd5 {[%emt 0:00:02]}
exd5 {[%emt 0:00:00]} 5. Bg5 {[%emt 0:00:01]} Be7 {[%emt 0:00:01]} 6. Qc2 {
[%emt 0:00:03]} c6 {[%emt 0:00:09]} 7. e3 {[%emt 0:00:04]} Nbd7 {[%emt 0:00:00]
} 8. Bd3 {[%emt 0:00:03]} O-O {[%emt 0:00:02]} 9. Nge2 {[%emt 0:00:05]} Re8 {
[%emt 0:00:00]} 10. O-O {[%emt 0:00:02]} Nf8 {[%emt 0:00:01]} 11. Rab1 {
[%emt 0:00:13]} Ne4 {[%emt 0:00:05]} 12. Bxe7 {[%emt 0:00:03]} Qxe7 {[%emt 0:
00:00]} 13. Nxe4 {[%emt 0:00:12]} dxe4 {[%emt 0:00:01]} 14. Bc4 {[%emt 0:00:03]
} Be6 {[%emt 0:00:15]} 15. Ng3 {[%emt 0:00:13]} Bd5 {[%emt 0:00:33]} 16. Bxd5 {
[%emt 0:00:11]} cxd5 {[%emt 0:00:00]} 17. Rbc1 {[%emt 0:00:01]} g6 {[%emt 0:00:
10]} 18. Qc7 {[%emt 0:00:06]} Ne6 {[%emt 0:00:11]} 19. Qxe7 {[%emt 0:00:15]}
Rxe7 {[%emt 0:00:01]} 20. h3 {[%emt 0:00:03]} Nd8 {[%emt 0:00:14]} 21. Rc2 {
[%emt 0:00:01]} Nc6 {[%emt 0:00:01]} 22. Rfc1 {[%emt 0:00:03]} Nb4 {[%emt 0:00:
11]} 23. Rc8+ {[%emt 0:00:05]} Rxc8 {[%emt 0:00:01]} 24. Rxc8+ {[%emt 0:00:01]}
Kg7 {[%emt 0:00:00]} 25. a3 {[%emt 0:00:02]} Nd3 {[%emt 0:00:01]} 26. b3 {
[%emt 0:00:22]} Kf6 {[%emt 0:00:30]} 27. Ne2 {[%emt 0:00:02]} Rd7 {[%emt 0:00:
28]} 28. Rc3 {[%emt 0:00:06]} Ke6 {[%emt 0:00:15]} 29. Nc1 {[%emt 0:00:14]}
Nxc1 {[%emt 0:00:02]} 30. Rxc1 {[%emt 0:00:01]} Kd6 {[%emt 0:00:01]} 31. Kf1 {
[%emt 0:00:04]} Rc7 {[%emt 0:00:00]} 32. Rxc7 {[%emt 0:00:05]} Kxc7 {[%emt 0:
00:00]} 33. Ke2 {[%emt 0:00:01]} Kc6 {[%emt 0:00:01]} 34. f3 {[%emt 0:00:06]}
f5 {[%emt 0:00:09]} 35. fxe4 {[%emt 0:00:05]} fxe4 {[%emt 0:00:09]} 36. Kf2 {
[%emt 0:00:00]} b5 {[%emt 0:00:03]} 37. Kg3 {[%emt 0:00:02]} a5 {[%emt 0:00:01]
} 38. Kf4 {[%emt 0:00:01]} Kd6 {[%emt 0:00:12]} 39. h4 {[%emt 0:00:09]} h6 {
[%emt 0:00:02]} 40. g4 {[%emt 0:00:05]} Ke6 {[%emt 0:00:01]} 41. h5 {[%emt 0:
00:10]} gxh5 {[%emt 0:00:18]} 42. gxh5 {[%emt 0:00:01]} Kf6 {[%emt 0:00:00]}
43. Kg4 {[%emt 0:00:05]} Ke6 {[%emt 0:00:04]} 44. Kf4 {[%emt 0:00:04]} 1/2-1/2

[Event "FIDE Women World Blitz 2021"]
[Site "Warsaw"]
[Date "2021.12.30"]
[Round "10.13"]
[White "Dzagnidze, Nana"]
[Black "Gaponenko, Inna"]
[Result "1/2-1/2"]
[ECO "D28"]
[WhiteElo "2524"]
[BlackElo "2339"]
[Annotator "ChessBase"]
[PlyCount "75"]
[EventDate "2021.12.29"]
[EventType "swiss"]
[EventCountry "POL"]
[Tiebreak "Cut1 Buchholz"]
[SourceTitle "playchess.com"]
[Source "ChessBase"]
[SourceQuality "1"]
[TimeControl "180+2"]

1. Nf3 {[%emt 0:00:01]} d5 {[%emt 0:00:01]} 2. c4 {[%emt 0:00:02]} dxc4 {
[%emt 0:00:01]} 3. e3 {[%emt 0:00:02]} Nf6 {[%emt 0:00:02]} 4. Bxc4 {[%emt 0:
00:02]} e6 {[%emt 0:00:00]} 5. d4 {[%emt 0:00:02]} c5 {[%emt 0:00:01]} 6. O-O {
[%emt 0:00:03]} Nc6 {[%emt 0:00:01]} 7. Qe2 {[%emt 0:00:07]} a6 {[%emt 0:00:01]
} 8. Rd1 {[%emt 0:00:11]} b5 {[%emt 0:00:01]} 9. Bd3 {[%emt 0:00:01]} c4 {
[%emt 0:00:09]} 10. Bc2 {[%emt 0:00:02]} Nb4 {[%emt 0:00:02]} 11. e4 {[%emt 0:
00:56]} Bb7 {[%emt 0:00:57]} 12. d5 {[%emt 0:00:15]} Bc5 {[%emt 0:00:01]} 13.
dxe6 {[%emt 0:00:09]} Qe7 {[%emt 0:00:01]} 14. exf7+ {[%emt 0:00:02]} Qxf7 {
[%emt 0:00:10]} 15. Nc3 {[%emt 0:00:09]} Ng4 {[%emt 0:01:09]} 16. Rf1 {[%emt 0:
00:23]} Nxc2 {[%emt 0:00:08]} 17. Qxc2 {[%emt 0:00:02]} O-O {[%emt 0:00:01]}
18. h3 {[%emt 0:00:14]} Nxf2 {[%emt 0:00:13]} 19. Rxf2 {[%emt 0:00:02]} Bxf2+ {
[%emt 0:00:03]} 20. Qxf2 {[%emt 0:00:02]} b4 {[%emt 0:00:00]} 21. Nd5 {[%emt 0:
00:13]} Bxd5 {[%emt 0:00:11]} 22. exd5 {[%emt 0:00:01]} Qxd5 {[%emt 0:00:01]}
23. Be3 {[%emt 0:00:20]} c3 {[%emt 0:00:10]} 24. bxc3 {[%emt 0:00:04]} bxc3 {
[%emt 0:00:01]} 25. Rc1 {[%emt 0:00:03]} Rac8 {[%emt 0:00:01]} 26. Rc2 {
[%emt 0:00:17]} Rc4 {[%emt 0:00:04]} 27. Bc1 {[%emt 0:00:07]} Re8 {[%emt 0:00:
10]} 28. Kh2 {[%emt 0:00:03]} Qd6+ {[%emt 0:00:02]} 29. Qg3 {[%emt 0:00:01]}
Qd3 {[%emt 0:00:01]} 30. Bh6 {[%emt 0:00:01]} g6 {[%emt 0:00:10]} 31. Rc1 {
[%emt 0:00:02]} c2 {[%emt 0:00:01]} 32. h4 {[%emt 0:00:02]} Qe4 {[%emt 0:00:06]
} 33. Bg5 {[%emt 0:00:01]} Qd3 {[%emt 0:00:03]} 34. Qf2 {[%emt 0:00:01]} Qd6+ {
[%emt 0:00:02]} 35. Qg3 {[%emt 0:00:02]} Qd1 {[%emt 0:00:02]} 36. Qf2 {[%emt 0:
00:03]} Qd6+ {[%emt 0:00:02]} 37. Kh3 {[%emt 0:00:02]} Qe6+ {[%emt 0:00:02]}
38. Kh2 {[%emt 0:00:01]} 1/2-1/2

[Event "FIDE Women World Blitz 2021"]
[Site "Warsaw"]
[Date "2021.12.30"]
[Round "10.13"]
[White "Rudzinska, Michalina"]
[Black "Da Silva, Cibele Florencio"]
[Result "1-0"]
[ECO "C60"]
[WhiteElo "1832"]
[BlackElo "1405"]
[Annotator "NA"]
[PlyCount "69"]
[EventDate "2021.12.29"]
[EventType "swiss"]
[EventCountry "POL"]
[Tiebreak "Cut1 Buchholz"]
[SourceTitle "playchess.com"]
[Source "ChessBase"]
[SourceQuality "1"]
[TimeControl "180+2"]

1. e4 {[%emt 0:00:01]} e5 {[%emt 0:00:01]} 2. Nf3 {[%emt 0:00:02]} Nc6 {
[%emt 0:00:01]} 3. Bb5 {[%emt 0:00:01]} h6 {[%emt 0:00:03]} 4. O-O {[%emt 0:00:
03]} Nf6 {[%emt 0:00:01]} 5. Re1 {[%emt 0:00:04]} d6 {[%emt 0:00:02]} 6. d4 {
[%emt 0:00:02]} Bd7 {[%emt 0:00:05]} 7. c3 {[%emt 0:00:10]} a6 {[%emt 0:00:01]}
8. Ba4 {[%emt 0:00:05]} Qe7 {[%emt 0:00:19]} 9. Nbd2 {[%emt 0:00:07]} Nd8 {
[%emt 0:00:02]} 10. Bc2 {[%emt 0:00:04]} Bg4 {[%emt 0:00:06]} 11. h3 {[%emt 0:
00:02]} Bh5 {[%emt 0:00:06]} 12. Nf1 {[%emt 0:00:03]} c6 {[%emt 0:00:34]} 13.
Ng3 {[%emt 0:00:06]} Bg6 {[%emt 0:00:08]} 14. Nh4 {[%emt 0:00:04]} Ne6 {
[%emt 0:00:26]} 15. Nxg6 {[%emt 0:00:05]} fxg6 {[%emt 0:00:05]} 16. d5 {
[%emt 0:00:12]} Nc7 {[%emt 0:00:04]} 17. dxc6 {[%emt 0:00:05]} bxc6 {[%emt 0:
00:03]} 18. f4 {[%emt 0:00:11]} Nd7 {[%emt 0:00:06]} 19. f5 {[%emt 0:00:06]} g5
{[%emt 0:00:06]} 20. Bb3 {[%emt 0:00:09]} Qf6 {[%emt 0:00:14]} 21. Qh5+ {
[%emt 0:00:10]} Kd8 {[%emt 0:00:04]} 22. Qf3 {[%emt 0:00:04]} Nc5 {[%emt 0:00:
04]} 23. Bc4 {[%emt 0:00:04]} Be7 {[%emt 0:00:08]} 24. Be3 {[%emt 0:00:02]} Nb7
{[%emt 0:00:17]} 25. Red1 {[%emt 0:00:13]} Na5 {[%emt 0:00:06]} 26. Be2 {
[%emt 0:00:06]} Nb5 {[%emt 0:00:05]} 27. Bb6+ {[%emt 0:00:02]} Ke8 {[%emt 0:00:
06]} 28. Bxa5 {[%emt 0:00:02]} Rg8 {[%emt 0:00:10]} 29. Bc4 {[%emt 0:00:06]}
Rh8 {[%emt 0:00:02]} 30. a4 {[%emt 0:00:09]} Na7 {[%emt 0:00:04]} 31. Qh5+ {
[%emt 0:00:06]} Kd7 {[%emt 0:00:02]} 32. Be6+ {[%emt 0:00:05]} Qxe6 {[%emt 0:
00:16]} 33. fxe6+ {[%emt 0:00:02]} Kxe6 {[%emt 0:00:02]} 34. Rf1 {[%emt 0:00:
05]} Raf8 {[%emt 0:00:08]} 35. Qg4+ {[%emt 0:00:03]} 1-0

[Event "FIDE Women World Blitz 2021"]
[Site "Warsaw"]
[Date "2021.12.30"]
[Round "10.14"]
[White "Injac, Teodora"]
[Black "Hryzlova, Sofiia"]
[Result "1-0"]
[ECO "B38"]
[WhiteElo "2387"]
[BlackElo "2097"]
[Annotator "NA"]
[PlyCount "103"]
[EventDate "2021.12.29"]
[EventType "swiss"]
[EventCountry "POL"]
[Tiebreak "Cut1 Buchholz"]
[SourceTitle "playchess.com"]
[Source "ChessBase"]
[SourceQuality "1"]
[TimeControl "180+2"]

1. Nf3 {[%emt 0:00:01]} c5 {[%emt 0:00:01]} 2. c4 {[%emt 0:00:01]} Nf6 {
[%emt 0:00:02]} 3. Nc3 {[%emt 0:00:01]} g6 {[%emt 0:00:01]} 4. d4 {[%emt 0:00:
09]} cxd4 {[%emt 0:00:03]} 5. Nxd4 {[%emt 0:00:02]} Bg7 {[%emt 0:00:02]} 6. e4
{[%emt 0:00:01]} d6 {[%emt 0:00:01]} 7. Be2 {[%emt 0:00:02]} O-O {[%emt 0:00:
03]} 8. O-O {[%emt 0:00:03]} a6 {[%emt 0:00:02]} 9. Be3 {[%emt 0:00:02]} Nc6 {
[%emt 0:00:05]} 10. Qd2 {[%emt 0:00:04]} Bd7 {[%emt 0:00:06]} 11. f3 {[%emt 0:
00:14]} Rc8 {[%emt 0:00:03]} 12. Rac1 {[%emt 0:00:03]} Qc7 {[%emt 0:00:18]} 13.
Nd5 {[%emt 0:00:13]} Qd8 {[%emt 0:00:03]} 14. Nxc6 {[%emt 0:00:09]} Rxc6 {
[%emt 0:00:03]} 15. Rfd1 {[%emt 0:00:18]} Be6 {[%emt 0:00:20]} 16. a4 {[%emt 0:
00:11]} Nd7 {[%emt 0:00:07]} 17. a5 {[%emt 0:00:10]} Nc5 {[%emt 0:00:08]} 18.
Rc2 {[%emt 0:00:52]} Nb3 {[%emt 0:00:11]} 19. Qb4 {[%emt 0:00:04]} Nc5 {
[%emt 0:00:28]} 20. Nb6 {[%emt 0:00:07]} Qc7 {[%emt 0:00:12]} 21. Qa3 {[%emt 0:
00:12]} f5 {[%emt 0:00:23]} 22. b4 {[%emt 0:00:01]} Nd7 {[%emt 0:00:01]} 23.
Nd5 {[%emt 0:00:03]} Qd8 {[%emt 0:00:02]} 24. exf5 {[%emt 0:00:10]} Bxf5 {
[%emt 0:00:03]} 25. Rcd2 {[%emt 0:00:01]} Ne5 {[%emt 0:00:14]} 26. Qb3 {
[%emt 0:00:03]} Kh8 {[%emt 0:00:07]} 27. Bd4 {[%emt 0:00:07]} e6 {[%emt 0:00:
10]} 28. Ne3 {[%emt 0:00:03]} Qc8 {[%emt 0:00:09]} 29. Nxf5 {[%emt 0:00:03]}
gxf5 {[%emt 0:00:03]} 30. b5 {[%emt 0:00:03]} Rc7 {[%emt 0:00:17]} 31. Bb6 {
[%emt 0:00:22]} Rd7 {[%emt 0:00:02]} 32. h3 {[%emt 0:00:04]} Nf7 {[%emt 0:00:
03]} 33. f4 {[%emt 0:00:01]} Bf6 {[%emt 0:00:05]} 34. Bf3 {[%emt 0:00:01]} Rg8
{[%emt 0:00:03]} 35. Re2 Qe8 {[%emt 0:00:02]} 36. Rde1 {[%emt 0:00:01]} e5 {
[%emt 0:00:01]} 37. Bd5 {[%emt 0:00:02]} e4 {[%emt 0:00:02]} 38. bxa6 {[%emt 0:
00:01]} bxa6 {[%emt 0:00:01]} 39. Bc6 {[%emt 0:00:00]} Qc8 {[%emt 0:00:03]} 40.
Bxd7 {[%emt 0:00:01]} Qxd7 {[%emt 0:00:00]} 41. Qd1 {[%emt 0:00:02]} Qc6 {
[%emt 0:00:02]} 42. Bd4 {[%emt 0:00:01]} Rg6 {[%emt 0:00:04]} 43. Bxf6+ {
[%emt 0:00:02]} Rxf6 {[%emt 0:00:01]} 44. Qd4 {[%emt 0:00:00]} Kg7 {[%emt 0:00:
01]} 45. Re3 {[%emt 0:00:01]} Qa4 {[%emt 0:00:03]} 46. Rg3+ {[%emt 0:00:01]}
Kf8 {[%emt 0:00:10]} 47. Qxf6 {[%emt 0:00:02]} Qb4 {[%emt 0:00:01]} 48. Rge3 {
[%emt 0:00:06]} Qxa5 {[%emt 0:00:01]} 49. Qe6 {[%emt 0:00:03]} Qc5 {[%emt 0:00:
01]} 50. Qd5 {[%emt 0:00:01]} Qb6 {[%emt 0:00:01]} 51. Qxf5 {[%emt 0:00:02]} a5
{[%emt 0:00:02]} 52. Qxe4 {[%emt 0:00:02]} 1-0

[Event "FIDE Women World Blitz 2021"]
[Site "Warsaw"]
[Date "2021.12.30"]
[Round "10.15"]
[White "Osmak, Yuliia"]
[Black "Efroimski, Marsel"]
[Result "0-1"]
[ECO "A40"]
[WhiteElo "2198"]
[BlackElo "2419"]
[Annotator "NA"]
[PlyCount "130"]
[EventDate "2021.12.29"]
[EventType "swiss"]
[EventCountry "POL"]
[Tiebreak "Cut1 Buchholz"]
[SourceTitle "playchess.com"]
[Source "ChessBase"]
[SourceQuality "1"]
[TimeControl "180+2"]

1. c4 {[%emt 0:00:02]} b6 {[%emt 0:00:00]} 2. d4 {[%emt 0:00:09]} e6 {[%emt 0:
00:01]} 3. e4 {[%emt 0:00:03]} Bb7 {[%emt 0:00:01]} 4. Bd3 {[%emt 0:00:02]}
Bb4+ {[%emt 0:00:01]} 5. Bd2 {[%emt 0:00:04]} Bxd2+ {[%emt 0:00:04]} 6. Qxd2 {
[%emt 0:00:02]} f5 {[%emt 0:00:01]} 7. Nc3 {[%emt 0:00:52]} Nf6 {[%emt 0:00:01]
} 8. f3 {[%emt 0:00:04]} Nc6 {[%emt 0:00:05]} 9. Nge2 {[%emt 0:00:08]} fxe4 {
[%emt 0:00:26]} 10. fxe4 {[%emt 0:00:07]} e5 {[%emt 0:00:01]} 11. d5 {[%emt 0:
00:19]} Nd4 {[%emt 0:00:01]} 12. O-O-O {[%emt 0:00:14]} Nxe2+ {[%emt 0:00:27]}
13. Bxe2 {[%emt 0:00:12]} d6 {[%emt 0:00:02]} 14. g4 {[%emt 0:00:06]} Qe7 {
[%emt 0:00:12]} 15. g5 {[%emt 0:00:02]} Nd7 {[%emt 0:00:02]} 16. Bh5+ {[%emt 0:
00:20]} g6 {[%emt 0:00:01]} 17. Bg4 {[%emt 0:00:01]} O-O-O {[%emt 0:00:09]} 18.
h4 {[%emt 0:00:06]} Kb8 {[%emt 0:00:01]} 19. Rdf1 {[%emt 0:00:11]} Rhf8 {
[%emt 0:00:06]} 20. Qe2 {[%emt 0:00:25]} Ba6 {[%emt 0:00:24]} 21. b3 {[%emt 0:
00:05]} Nc5 {[%emt 0:00:02]} 22. Rxf8 {[%emt 0:00:04]} Rxf8 {[%emt 0:00:01]}
23. Rf1 {[%emt 0:00:01]} Bc8 {[%emt 0:00:08]} 24. Rxf8 Qxf8 {[%emt 0:00:01]}
25. Bxc8 {[%emt 0:00:07]} Kxc8 {[%emt 0:00:05]} 26. Qg4+ {[%emt 0:00:02]} Kb8 {
[%emt 0:00:04]} 27. Qg2 {[%emt 0:00:04]} Qf4+ {[%emt 0:00:01]} 28. Kc2 {
[%emt 0:00:01]} Qe3 {[%emt 0:00:10]} 29. b4 {[%emt 0:00:02]} Qd3+ {[%emt 0:00:
03]} 30. Kb2 {[%emt 0:00:01]} Na6 {[%emt 0:00:24]} 31. a3 {[%emt 0:00:01]} Qxc4
{[%emt 0:00:01]} 32. Qf3 {[%emt 0:00:01]} Qd4 {[%emt 0:00:05]} 33. Qf8+ {
[%emt 0:00:01]} Kb7 {[%emt 0:00:01]} 34. Qe8 {[%emt 0:00:02]} Nb8 {[%emt 0:00:
03]} 35. Qf7 {[%emt 0:00:02]} Qd2+ {[%emt 0:00:03]} 36. Kb3 {[%emt 0:00:00]} a5
{[%emt 0:00:12]} 37. bxa5 {[%emt 0:00:02]} Na6 {[%emt 0:00:04]} 38. axb6 {
[%emt 0:00:02]} Nc5+ {[%emt 0:00:03]} 39. Kc4 {[%emt 0:00:05]} Qd3+ {[%emt 0:
00:02]} 40. Kb4 {[%emt 0:00:02]} Qd4+ {[%emt 0:00:13]} 41. Kb5 {[%emt 0:00:01]}
Qd3+ {[%emt 0:00:02]} 42. Kb4 {[%emt 0:00:01]} Kxb6 {[%emt 0:00:14]} 43. a4 {
[%emt 0:00:08]} Qd4+ {[%emt 0:00:02]} 44. Ka3 {[%emt 0:00:01]} Qxc3+ {[%emt 0:
00:01]} 45. Ka2 {[%emt 0:00:00]} Qb3+ {[%emt 0:00:01]} 46. Ka1 {[%emt 0:00:01]}
Qxa4+ {[%emt 0:00:01]} 47. Kb2 {[%emt 0:00:00]} Qb4+ {[%emt 0:00:02]} 48. Kc1 {
[%emt 0:00:01]} Qc3+ {[%emt 0:00:01]} 49. Kd1 {[%emt 0:00:01]} Qd3+ {[%emt 0:
00:01]} 50. Kc1 {[%emt 0:00:00]} Qc4+ {[%emt 0:00:02]} 51. Kb1 {[%emt 0:00:02]}
Qxe4+ {[%emt 0:00:02]} 52. Kb2 {[%emt 0:00:00]} Qe2+ {[%emt 0:00:04]} 53. Kc3 {
[%emt 0:00:01]} Qd3+ {[%emt 0:00:01]} 54. Kb2 {[%emt 0:00:01]} Qb3+ {[%emt 0:
00:02]} 55. Kc1 {[%emt 0:00:00]} Qc3+ {[%emt 0:00:01]} 56. Kb1 {[%emt 0:00:01]}
Qd3+ {[%emt 0:00:00]} 57. Kb2 {[%emt 0:00:01]} Qe2+ {[%emt 0:00:02]} 58. Kc3 {
[%emt 0:00:02]} Qe3+ {[%emt 0:00:02]} 59. Kc2 {[%emt 0:00:01]} Qe4+ {[%emt 0:
00:06]} 60. Kb2 {[%emt 0:00:01]} Qxh4 {[%emt 0:00:01]} 61. Qe8 {[%emt 0:00:01]}
Qb4+ {[%emt 0:00:01]} 62. Kc2 {[%emt 0:00:01]} Qc4+ {[%emt 0:00:01]} 63. Kb1 {
[%emt 0:00:01]} Qxd5 {[%emt 0:00:02]} 64. Qb8+ {[%emt 0:00:01]} Qb7 {[%emt 0:
00:01]} 65. Qf8 {[%emt 0:00:02]} e4 {[%emt 0:00:02]} 0-1